Cogmind - Beta 13 *** ADVENTURER MODE // 2024.06.04 @ 18:14:25 Player: toastahs Result: Destroyed by Y-45 Defender with Heavy Assault Rifle Performance ------------- Evolutions (0) 0 Regions Visited (2) 400 Robots Destroyed (12) 60 Value Destroyed (251) 251 Prototype IDs (0) 0 Alien Tech Used (0) 0 Bonus (0) 0 TOTAL SCORE: 711 Bonus ------- None Cogmind --------- Core Integrity 0/250 Matter 312/400 Energy 71/100 System Corruption 0% Temperature Danger (405) Movement Core (200) Ox3 Location -10/Mines Parts ------- > --- POWER (1) -------- (None) > --- PROPULSION (2) --- (None) > --- UTILITY (2) ------ Small Storage Unit Medium Matter Pod > --- WEAPON (2) ------- Beam Cannon > --- INVENTORY (8) ---- Wheel Medium Matter Pod (0) Core Shielding Beam Cannon Mining Laser Peak State ------------ > --- POWER ------------ Light Ion Engine > --- PROPULSION ------- Aluminum Leg Aluminum Leg > --- UTILITY ---------- Small Storage Unit Medium Matter Pod > --- WEAPON ----------- Beam Cannon Assault Rifle > --- INVENTORY -------- Ion Engine Wheel Beam Cannon Beam Cannon Beam Cannon Mining Laser [Rating: 7] Favorites ----------- Power Light Ion Engine Engine Light Ion Engine Propulsion Aluminum Leg Leg Aluminum Leg Utility Small Storage Unit Storage Small Storage Unit Weapon Assault Rifle Energy Cannon Beam Cannon Ballistic Gun Assault Rifle Build | -11 -10 -10 ------- Run | Yrd Mat Min Slots Evolved . | . . . Power . | . . . Propulsion . | . . . Utility . | . . . Weapon . | . . . Parts Attached 10 | 5 2 3 Power 2 | 1 . 1 Engine 2 | 1 . 1 Core . | . . . Reactor . | . . . Propulsion 2 | 2 . . Treads . | . . . Leg 2 | 2 . . Wheel . | . . . Hover . | . . . Flight . | . . . Utility 2 | 1 1 . Device . | . . . Storage 2 | 1 1 . Processor . | . . . Hackware . | . . . Protection . | . . . Artifact . | . . . Weapon 4 | 1 1 2 Energy Gun . | . . . Energy Cannon 3 | . 1 2 Ballistic Gun 1 | 1 . . Ballistic Cannon . | . . . Launcher . | . . . Special Weapon . | . . . Impact Weapon . | . . . Slashing Weapon . | . . . Piercing Weapon . | . . . Special Melee Weapon . | . . . Unidentified Prototypes . | . . . Parts Lost 7 | . . 7 Power 2 | . . 2 Propulsion 2 | . . 2 Utility . | . . . Weapon 3 | . . 3 Highest Loss Streak 7 | . . 7 To Critical Strikes . | . . . Average Slot Usage (%) 91 | . 90 93 Engine 13 | . 14 12 Leg 26 | . 28 24 Storage 24 | . 20 28 Energy Cannon 13 | . 12 14 Ballistic Gun 12 | . 14 11 Naked Turns . | . . . Heaviest Build 15 | 10 15 15 Greatest Support 20 | 20 20 20 Greatest Overweight (x) 4 | . . 4 Average Overweight (x) . | . . . Largest Inventory Capacity 8 | 8 8 8 Average Capacity 7 | 7 8 8 Most Carried 8 | 5 8 8 Average Carried 5 | 1 5 7 Final Capacity 8 | 8 8 8 Final Carried 8 | 2 8 5 Class Distribution -------------------- 100% | Mutant Dominant Class ---------------- Mutant | -10/Materials Mutant | -10/Mines Resources | -11 -10 -10 ----------- Run | Yrd Mat Min Matter Collected 328 | 224 30 74 Remotely . | . . . Salvage Created 315 | . 48 267 Parts 22 | . 3 19 Haulers Intercepted . | . . . Recyclers Shooed . | . . . Parts Field Recycled . | . . . Retrieved Matter . | . . . Parts Self-Destructed . | . . . Prevented . | . . . Kills | -11 -10 -10 ------- Run | Yrd Mat Min Combat Hostiles Destroyed 13 | . 3 10 Guns 4 | . . 4 Cannons 9 | . 3 6 Classes Destroyed 4 | . 1 3 Swarmer 9 | . 3 6 Sentry 1 | . . 1 Demolisher 2 | . . 2 Assembled 1 | . . 1 Best Kill Streak 4 | . 3 4 Combat Bots Only 4 | . 3 4 Max Kills in Single Turn 1 | . 1 1 Gunslinging . | . . . Exploded . | . . . Melee . | . . . Uniques/NPCs Destroyed . | . . . Combat | -11 -10 -10 -------- Run | Yrd Mat Min Hostile Shots Fired 96 | . 7 89 Missed 25 | . 3 22 Damage Taken 1052 | . 26 1026 Core 255 | . . 255 Absorbed by Shields . | . . . Ignored by Resistances 291 | . 8 283 Core Remaining (%) 100 | 100 . . Volleys Fired 28 | . 5 23 Largest 2 | . 2 2 Hottest 120 | . 80 120 Shots Fired 51 | . 10 41 Gun 17 | . 5 12 Cannon 34 | . 5 29 Launcher . | . . . Special . | . . . Kinetic 17 | . 5 12 Thermal 34 | . 5 29 Explosive . | . . . Electromagnetic . | . . . Robot Hit Streak 21 | . 3 21 Robot Miss Streak 3 | . 2 3 Penetration Max . | . . . Secondary Targets . | . . . Shots Hit Robots 33 | . 6 27 Core Hits 21 | . 3 18 Critical Kills . | . . . Critical Parts Destroyed . | . . . Critical Strikes . | . . . Melee Attacks . | . . . Impact . | . . . Slashing . | . . . Piercing . | . . . Sneak Attacks . | . . . Combat Hostiles . | . . . Follow-up Attacks . | . . . Damage Inflicted 581 | . 106 475 Guns 128 | . 37 91 Cannons 453 | . 69 384 Explosions . | . . . Melee . | . . . Ramming . | . . . Kinetic 128 | . 37 91 Thermal 453 | . 69 384 Explosive . | . . . Electromagnetic . | . . . Impact . | . . . Slashing . | . . . Piercing . | . . . Highest Corruption . | . . . Average Corruption . | . . . Corruption Purged . | . . . Corruption Blocked . | . . . Overload Shots . | . . . Overflow Damage 1 | . 1 . Projectiles 1 | . 1 . Explosions . | . . . Melee . | . . . Knockbacks . | . . . Impact . | . . . Kinetic . | . . . Secondary . | . . . Self-Inflicted Damage . | . . . Shots . | . . . Rammed . | . . . Targets Rammed . | . . . Kicked . | . . . Crushed . | . . . Highest Temperature 396 | . 54 396 Average Temperature 131 | . 23 154 Received Heat Transfer 207 | . . 207 Siege Activations . | . . . Robots Corrupted . | . . . Combat Hostiles . | . . . Parts Fried . | . . . Impact Corruptions . | . . . Robots Melted . | . . . Combat Hostiles . | . . . Parts Melted 1 | . 1 . Heat Transferred 962 | . 148 814 Parts Sabotaged . | . . . Parts Stolen . | . . . Parts Stripped . | . . . Power Chain Reactions . | . . . Alert | -11 -10 -10 ------- Run | Yrd Mat Min Peak Influence 222 | . 85 222 Initial 28 | . . 28 Average 63 | . 22 149 Maximum Alert Level 1 | . . 1 Low Security (%) 97 | 100 100 94 Level 1 2 | . . 5 Level 2 . | . . . Level 3 . | . . . Level 4 . | . . . Level 5 . | . . . High Security . | . . . Max Security . | . . . Squads Dispatched . | . . . Investigation . | . . . Extermination . | . . . Reinforcement . | . . . Assault . | . . . Garrison . | . . . Intercept . | . . . Searches Triggered . | . . . Construction Impeded . | . . . Haulers Reinforced . | . . . Active Scanning Responses . | . . . Cargo Convoy Interrupts . | . . . Stealth | -11 -10 -10 --------- Run | Yrd Mat Min Distress Signals . | . . . Communications Jammed . | . . . Distress Signals . | . . . Times Spotted 16 | . 5 11 Peak Tracking Total 5 | . 3 5 Tactical Retreats . | . . . Traps | -11 -10 -10 ------- Run | Yrd Mat Min Traps Triggered 1 | . 1 . Indirectly . | . . . Trap Hack Attempts . | . . . Triggered . | . . . Disarmed . | . . . Reprogrammed . | . . . Reused . | . . . Traps Extracted . | . . . Installed . | . . . Triggered . | . . . Machines | -11 -10 -10 ---------- Run | Yrd Mat Min Machines Disabled 2 | . . 2 Max in Single Turn 1 | . . 1 Machines Repaired . | . . . Machines Dismantled . | . . . Machines Sabotaged . | . . . Overloaded Fab Kills . | . . . Hacking | -11 -10 -10 --------- Run | Yrd Mat Min Machines Accessed 1 | . 1 . Terminals 1 | . 1 . Fabricators . | . . . Repair Stations . | . . . Recycling Units . | . . . Scanalyzers . | . . . Garrison Access . | . . . Total Hacks 2 | . 2 . Successful 1 | . 1 . Failed 1 | . 1 . Catastrophic . | . . . Database Lockouts . | . . . Manual . | . . . Terminals 2 | . 2 . Fabricators . | . . . Repair Stations . | . . . Recycling Units . | . . . Scanalyzers . | . . . Garrison Access . | . . . Terminal Hacks 1 | . 1 . Emergency Access Points 1 | . 1 . Fabricator Hacks . | . . . Repair Station Hacks . | . . . Recycling Unit Hacks . | . . . Scanalyzer . | . . . Garrison Access Hacks . | . . . Unauthorized Hacks . | . . . Terminals . | . . . Fabricators . | . . . Repair Stations . | . . . Recycling Units . | . . . Scanalyzers . | . . . Garrison Access . | . . . Data Cores Recovered . | . . . Used . | . . . Hacking Detections 1 | . 1 . Full Trace Events . | . . . Feedback Events . | . . . Feedback Blocked . | . . . Robot Schematics Acquired . | . . . Robots Built . | . . . Authchips . | . . . Time . | . . . Total Robot Build Rating . | . . . Part Schematics Acquired . | . . . Parts Built . | . . . Authchips . | . . . Time . | . . . Total Part Build Rating . | . . . Parts Repaired . | . . . Time . | . . . Parts Recycled . | . . . Recycled Matter . | . . . Retrieved Matter . | . . . Retrieved Components . | . . . Parts Scanalyzed . | . . . Part Schematics Acquired . | . . . Parts Damaged . | . . . Bothacking | -11 -10 -10 ------------ Run | Yrd Mat Min Used RIF Installer . | . . . Robots Hacked . | . . . Non-combat . | . . . Combat . | . . . Robot Hacks Applied . | . . . Relay Couplers Released . | . . . Fabnet Peak Effective % . | . . . Robots Rewired . | . . . Allies Hacked . | . . . Hacks Repelled . | . . . Allies | -11 -10 -10 -------- Run | Yrd Mat Min Total Allies . | . . . Largest Group . | . . . Highest-Rated Group . | . . . Highest-Rated Ally . | . . . Total Orders . | . . . Ally Attacks . | . . . Total Damage . | . . . Kills . | . . . Allies Corrupted . | . . . Allies Melted . | . . . Intel | -11 -10 -10 ------- Run | Yrd Mat Min Robot Analysis Total . | . . . Derelict Logs Recovered . | . . . Drone Launches . | . . . Drone Recoveries . | . . . Exploration | -11 -10 -10 ------------- Run | Yrd Mat Min Turns Passed 564 | 165 187 212 Spaces Moved 322 | 67 136 119 Core 22 | 20 . 2 Treads . | . . . Legs 300 | 47 136 117 Wheels . | . . . Hover . | . . . Flight . | . . . Fastest Speed 50 | 50 120 120 Average Speed 116 | 99 120 122 Slowest Speed 250 | 120 120 250 Overloaded Moves . | . . . Propulsion Burnouts . | . . . Robots Hopped . | . . . Cave-ins Triggered . | . . . Exploration Rate (%) 24 | 7 25 41 Regions Visited 2 Branch Regions 1 Pre-discovered Areas . | . . . Known Exits Taken . | . . . Unknown Exits Taken 2 | 1 1 . Scrap Searched . | . . . Spaces Dug . | . . . Terrain Destroyed . | . . . Melee . | . . . Projectile . | . . . AOE . | . . . Terrain Rammed . | . . . Walls Destroyed . | . . . Machines Disabled . | . . . Actions | -11 -10 -10 --------- Run | Yrd Mat Min Total 460 | 165 150 145 Wait 87 | 87 . . Move 320 | 66 135 119 Hop . | . . . Pick Up 15 | 7 8 . Fast Attach . | . . . Attach 10 | 5 2 3 Detach . | . . . Swap . | . . . Drop . | . . . Fire 28 | . 5 23 Melee . | . . . Ram . | . . . Kick . | . . . Crush . | . . . Escape Stasis . | . . . Rewire . | . . . Trap . | . . . Miscellaneous . | . . . Route ------- -11/Scrapyard -10/Materials -10/Mines History --------- Turn | Location | Event 24 | -11/Scrapyard | Discovered new exit (range 15) 166 | -11/Scrapyard | Entered Materials 305 | -10/Materials | Build established: Mutant 309 | -10/Materials | Discovered new exit (range 7) 353 | -10/Materials | Entered Mines 384 | -10/Mines | Met a Derelict bent on vengeance 501 | -10/Mines | Assembled infested the area 534 | -10/Mines | Core integrity fell below 50% 551 | -10/Mines | Core integrity fell below 20% 565 | -10/Mines | Destroyed by Y-45 Defender with Heavy Assault Rifle Last Messages --------------- Beam Cannon destroyed. Assault Rifle destroyed. Aluminum Leg destroyed. D-53 Grenadier destroyed. Ion Engine destroyed. Aluminum Leg destroyed. Critical hit (Burn: +37). The unstable cave ceiling collapses. as-47017 destroyed. R-06 Scavenger collects Launcher Guidance Computer. as-04092 destroyed. R-06 Scavenger collects Imp. Light Armor Plating. Beam Cannon destroyed. U-05 Engineer lays Concrete. Y-45 Defender destroyed. U-05 Engineer lays Concrete. Machine disabled. U-05 Engineer lays Concrete. Map ----- +----------------------------------------------------+ | ?????????????????????????????????????????????????? | | ?????????????????????????????????????????????????? | | ?????????????????????????????????????????????????? | | ?????????????????????????????????????????????????? | | ?????????????????????????????????????????????????? | | ???????????????????????????#?????????????????????? | | ??????????????????????????? #???????????????????? | | ?????????????????????????? ???????????????????? | | ????????????????????????? #??????????????????? | | ???????????????????????? #??????????????????? | | ???????????####????????# #??????????????????? | | ??????????## ####????# #???????????????????? | | ?????????## ##??# #???????????????????? | | ????####?# ### ## ????????????????? | | ??### ### ????????????????? | | ### [ * ?????????????????? | | == [ #??????????????????????? | | ##### ##??????????????#????????? | | # ##?## ##??????????????? ????????? | | # #?## #####????????????? ????????? | | # #?# ###?# ????????????# ????????? | | # ##?# ###???# #????????###?# #???????? | | # ## #??## ##???### ##???????# ? #???????? | | # ?# #???# #???## ####????# #?# ##??????? | | ??# #???# ###??# #????# #?# ???????? | | #??# #???## ####!!## @ # ##???# ### #???????? | | ???# ?????# ####?#"!| % ##### ## ###?????? | | ???# ?????# #????# Y % !%! "%"####### | | ???# ?????# #????#!% u =% " | | ???# ###### #????# !!$ ]! ###u | | ???# #????##!!# ####?## #### | | ???######## ###???##### ##?????# ##?? | | ??????????# #???????## ##??????# #?? | | ??????????## #????????### ##???????# #?? | | ???????????# ####???????## #????????# #?? | | ??????????## #????????## ##????????# ##?? | | ??????????# #############?????????## ##??? | | ?????????## = ############ ##??? | | ?????##### [ ##?? | | ?????# #=######### ### | | ?????# #### #???????########## | | ?????# ##??#=#????????????????## | | ?????#######????#%#?????????????????### | | ????????????????#=#???????????????????## | | ???????????????? ????????????????????## ### | | ????????????????" ?????????????????????######??# | | ????????????????"" ?????????????????????????????? | | ????????????????"" ??????????????????????????????? | | ????????????????? ??????????????????????????????? | | ??????????????????##?????????????????????????????? | +----------------------------------------------------+ Best States ------------- Heat Dissipation 25 Energy Generation 10 Energy Capacity 250 Matter Stores 319 Matter Capacity 400 Sight Range 16 Terrain Scan Density 10 Resistance: KI 20 Resistance: TH 20 Resistance: EX 20 Resistance: EM 20 Resistance: I 20 Resistance: S 20 Resistance: P 20 Evasion (%) 55 Offensive Hacking 10 Item Schematics ----------------- None Robot Schematics ------------------ None Fabricated ------------ Nothing Alien Tech Used ----------------- None Achievements -------------- None Challenges ------------ None Game ------ Seed PhysicsDisruptorNullifier Manual? 0 Play Time 00:09:41 Cumulative 64.1 hours Start 2024.06.04 @ 17:58:44 End 2024.06.04 @ 18:14:25 Sessions 1 Manual Loads 0 Difficulty Adventurer Special Mode None Game No. 36 Rogue 21 Adventurer 15 Explorer 0 Win Type - Total 1 Types 1/0/0/0/0/0/0/0/0 Lore% 33 Gallery% 49 Achievement% 42 Wizard Run 0 Options --------- Layout 1 ASCII 0 Keyboard 0 Movement Mouse Keybinds 0 Fullscreen 1 Font 24/Smallcaps Map View 50x35 Zoom Use 0% Tactical HUD 0 Map Filters NONE Filters NONE Steam 1 RUN: f759954a-a17a-44a0-8d70-350132372293